[Event "DVM U14w 2019"]
[Site "Neumuenster"]
[Date "2019.12.27"]
[Round "1"]
[White "Foos, Vanessa"]
[Black "Buchholz, Maja"]
[Result "0-1"]
[ECO "C01"]
[WhiteElo "1309"]
[BlackElo "1666"]
[Annotator "NA RC"]
[PlyCount "68"]
[EventDate "2019.12.27"]
[EventType "team-tourn"]
[EventRounds "7"]
[EventCountry "GER"]
[SourceTitle "playchess.com"]
[Source "ChessBase"]
[SourceQuality "1"]
[WhiteTeam "TuRa Harksheide Norderstedt"]
[BlackTeam "VSG 1880 Offenbach"]
[TimeControl "40/5400+30:1800+30"]

1. e4 {[%emt 0:00:00]} e6 {[%emt 0:00:00]} 2. d4 {[%emt 0:00:00]} d5 {[%emt 0:00:00]} 3. exd5 {[%emt 0:00:00]} exd5 {[%emt 0:00:00]} 4. Bd3 {[%emt 0:00:00]} Nf6 {[%emt 0:00:00]} 5. Ne2 {[%emt 0:00:22]} Nc6 {[%emt 0:00:40]} 6. Nbc3 {[%emt 0:00:25]} Bd6 {[%emt 0:00:24]} 7. O-O {[%emt 0:00:23]} O-O {[%emt 0:00:29]} 8. Bf4 {[%emt 0:01:57]} Nxd4 {[%emt 0:01:59]} 9. Bxh7+ {[%emt 0:00:22]} Nxh7 {[%emt 0:00:27]} 10. Qxd4 {[%emt 0:00:24]} c6 {[%emt 0:00:52]} 11. Bxd6 {[%emt 0:01:49]} Qxd6 {[%emt 0:00:07]} 12. Ng3 {[%emt 0:03:06]} Qg6 {[%emt 0:01:48]} 13. Qd2 {[%emt 0:14:09]} b6 {[%emt 0:02:43]} 14. Rfe1 {[%emt 0:03:11]} Bb7 {[%emt 0:01:13]} 15. Re7 {[%emt 0:05:33]} Rab8 {[%emt 0:00:13]} 16. Rae1 {[%emt 0:00:43]} Ng5 {[%emt 0:00:43]} 17. f4 {[%emt 0:11:48]} Ne6 {[%emt 0:03:21]} 18. f5 {[%emt 0:00:15]} Qf6 {[%emt 0:01:56]} 19. Rxb7 {[%emt 0:00:42]} Rxb7 {[%emt 0:00:12]} 20. fxe6 {[%emt 0:00:08]} fxe6 {[%emt 0:00:15]} 21. Qe2 {[%emt 0:09:07]} Re7 {[%emt 0:05:00]} 22. a3 {[%emt 0:11:49]} e5 {[%emt 0:01:52]} 23. Nd1 {[%emt 0:06:36]} e4 {[%emt 0:01:37]} 24. Ne3 {[%emt 0:05:19]} Qxb2 {[%emt 0:01:26]} 25. Nef5 {[%emt 0:04:50]} Rc7 {[%emt 0:02:50]} 26. a4 {[%emt 0:04:55]} g6 {[%emt 0:05:26]} 27. Qg4 {[%emt 0:03:25]} Qf6 {[%emt 0:02:12]} 28. Rf1 {[%emt 0:01:20]} Kh8 {[%emt 0:00:38]} 29. Qh3+ {[%emt 0:00:18]} Rh7 {[%emt 0:00:37]} 30. Nh4 {[%emt 0:02:11]} Qd4+ {[%emt 0:01:11]} 31. Kh1 {[%emt 0:00:43]} Rxf1+ {[%emt 0:00:40]} 32. Nxf1 {[%emt 0:00:14]} Qf6 {[%emt 0:00:44]} 33. Qc8+ {[%emt 0:04:02]} Kg7 {[%emt 0:00:30]} 34. Qd7+ {[%emt 0:00:50]} Kh6 {normal} 0-1

[Event "DVM U14w 2019"]
[Site "Neumuenster"]
[Date "2019.12.27"]
[Round "1"]
[White "Muhina, Liana"]
[Black "Oswald, Hannah"]
[Result "0-1"]
[ECO "C45"]
[WhiteElo "1272"]
[BlackElo "1647"]
[Annotator "NA RC"]
[PlyCount "66"]
[EventDate "2019.12.27"]
[EventType "team-tourn"]
[EventRounds "7"]
[EventCountry "GER"]
[SourceTitle "playchess.com"]
[Source "ChessBase"]
[SourceQuality "1"]
[WhiteTeam "SC Garching"]
[BlackTeam "SG Leipzig"]
[TimeControl "40/5400+30:1800+30"]

1. e4 {[%emt 0:00:00]} e5 {[%emt 0:00:00]} 2. Nf3 {[%emt 0:00:00]} Nc6 {[%emt 0:00:00]} 3. d4 {[%emt 0:00:00]} exd4 {[%emt 0:00:00]} 4. Nxd4 {[%emt 0:00:02]} Bc5 {[%emt 0:00:07]} 5. Nxc6 {[%emt 0:00:25]} bxc6 {[%emt 0:01:02]} 6. Nc3 {[%emt 0:00:50]} Ne7 {[%emt 0:03:00]} 7. Bc4 {[%emt 0:01:36]} O-O {[%emt 0:05:14]} 8. O-O {[%emt 0:02:43]} Ng6 {[%emt 0:05:32]} 9. Re1 {[%emt 0:09:43]} Ne5 {[%emt 0:03:11]} 10. Bb3 {[%emt 0:03:00]} Qh4 {[%emt 0:01:59]} 11. Be3 {[%emt 0:08:29]} Bxe3 {[%emt 0:01:35]} 12. Rxe3 {[%emt 0:01:13]} Ng4 {[%emt 0:05:55]} 13. Rh3 {[%emt 0:02:15]} Qxf2+ {[%emt 0:02:25]} 14. Kh1 {[%emt 0:01:04]} Qf4 {[%emt 0:04:19]} 15. Ne2 {[%emt 0:11:06]} Nf2+ {[%emt 0:01:08]} 16. Kg1 {[%emt 0:00:19]} Nxh3+ {[%emt 0:00:09]} 17. gxh3 {[%emt 0:01:11]} Qxe4 {[%emt 0:00:56]} 18. Ng3 {[%emt 0:04:12]} Qe3+ {[%emt 0:01:29]} 19. Kh1 {[%emt 0:00:53]} d5 {[%emt 0:02:44]} 20. Qf1 {[%emt 0:01:23]} Re8 {[%emt 0:04:48]} 21. Qg2 {[%emt 0:09:02]} Qh6 {[%emt 0:04:09]} 22. Rg1 {[%emt 0:08:55]} Bxh3 {[%emt 0:02:28]} 23. Qf3 {[%emt 0:00:23]} Re3 {[%emt 0:04:50]} 24. Qf2 {[%emt 0:01:23]} Rae8 {[%emt 0:07:58]} 25. c3 {[%emt 0:05:00]} Bg4 {[%emt 0:06:03]} 26. Bc2 {[%emt 0:05:13]} Bf3+ {[%emt 0:01:12]} 27. Rg2 {[%emt 0:01:18]} Bxg2+ {[%emt 0:01:12]} 28. Qxg2 {[%emt 0:00:41]} Rxg3 {[%emt 0:01:04]} 29. Qxg3 {[%emt 0:00:24]} Qc1+ {[%emt 0:00:15]} 30. Kg2 {[%emt 0:01:07]} Qxc2+ {[%emt 0:00:12]} 31. Kg1 {[%emt 0:02:43]} Qd2 {[%emt 0:03:47]} 32. Qf2 {[%emt 0:03:38]} Re1+ {[%emt 0:00:19]} 33. Kg2 {[%emt 0:00:14]} Re2 {[%emt 0:00:06] normal} 0-1

[Event "DVM U14w 2019"]
[Site "Neumuenster"]
[Date "2019.12.27"]
[Round "1"]
[White "Muhina, Alina"]
[Black "Halas, Neele Zoe"]
[Result "*"]
[ECO "C45"]
[WhiteElo "1228"]
[BlackElo "1076"]
[Annotator "NA RC"]
[PlyCount "96"]
[EventDate "2019.12.27"]
[EventType "team-tourn"]
[EventRounds "7"]
[EventCountry "GER"]
[SourceTitle "playchess.com"]
[Source "ChessBase"]
[SourceQuality "1"]
[WhiteTeam "SC Garching"]
[BlackTeam "SG Leipzig"]
[TimeControl "40/5400+30:1800+30"]

1. e4 {[%emt 0:00:00]} e5 {[%emt 0:00:00]} 2. Nf3 {[%emt 0:00:00]} Nc6 {[%emt 0:00:00]} 3. d4 {[%emt 0:00:00]} exd4 {[%emt 0:00:00]} 4. Nxd4 {[%emt 0:00:00]} Bc5 {[%emt 0:00:00]} 5. Nxc6 {[%emt 0:00:00]} bxc6 {[%emt 0:00:14]} 6. Nc3 {[%emt 0:00:00]} Ne7 {[%emt 0:03:07]} 7. Bd3 {[%emt 0:00:54]} d5 {[%emt 0:01:00]} 8. O-O {[%emt 0:03:12]} O-O {[%emt 0:03:33]} 9. Qh5 {[%emt 0:02:04]} h6 {[%emt 0:06:58]} 10. Bf4 {[%emt 0:08:07]} Be6 {[%emt 0:05:05]} 11. Rad1 {[%emt 0:02:57]} Qd7 {[%emt 0:07:32]} 12. h3 {[%emt 0:00:26]} Rab8 {[%emt 0:06:42]} 13. b3 {[%emt 0:00:58]} Qc8 {[%emt 0:04:00]} 14. Na4 {[%emt 0:02:06]} Bb6 {[%emt 0:02:02]} 15. Nxb6 {[%emt 0:06:23]} axb6 {[%emt 0:00:45]} 16. Rfe1 {[%emt 0:00:58]} Rd8 {[%emt 0:03:31]} 17. Re3 {[%emt 0:01:32]} Ng6 {[%emt 0:04:33]} 18. Bxh6 {[%emt 0:01:20]} gxh6 {[%emt 0:00:56]} 19. Qxh6 {[%emt 0:00:10]} dxe4 {[%emt 0:01:16]} 20. Be2 {[%emt 0:09:05]} Rxd1+ {[%emt 0:02:35]} 21. Bxd1 {[%emt 0:00:10]} Qf8 {[%emt 0:02:42]} 22. Qg5 {[%emt 0:01:27]} Rd8 {[%emt 0:02:45]} 23. Re1 {[%emt 0:01:01]} Qe7 {[%emt 0:01:20]} 24. Qh6 {[%emt 0:00:35]} Qh4 {[%emt 0:01:42]} 25. Qe3 {[%emt 0:00:22]} Bf5 {[%emt 0:03:05]} 26. c4 {[%emt 0:06:23]} Rd3 {[%emt 0:07:06]} 27. Qc1 {[%emt 0:04:07]} Qf4 {[%emt 0:04:54]} 28. Re3 {[%emt 0:05:47]} Rxe3 {[%emt 0:02:40]} 29. Qxe3 {[%emt 0:02:01]} Qxe3 {[%emt 0:00:31]} 30. fxe3 {[%emt 0:00:06]} Ne5 {[%emt 0:00:52]} 31. b4 {[%emt 0:03:43]} Nxc4 {[%emt 0:00:27]} 32. Kf2 {[%emt 0:02:07]} Bg6 {[%emt 0:01:24]} 33. g4 {[%emt 0:04:32]} f6 {[%emt 0:01:13]} 34. Bb3 {[%emt 0:00:32]} Bf7 {[%emt 0:00:16]} 35. Kg3 {[%emt 0:01:37]} Nxe3 {[%emt 0:01:26]} 36. Bxf7+ {[%emt 0:00:35]} Kxf7 {[%emt 0:00:06]} 37. Kf4 {[%emt 0:00:15]} Nc2 {[%emt 0:00:35]} 38. Kxe4 {[%emt 0:00:23]} Nxb4 {[%emt 0:00:14]} 39. a4 {[%emt 0:00:15]} c5 {[%emt 0:00:19]} 40. Ke3 {[%emt 0:00:45]} c6 {[%emt 0:01:47]} 41. Kd2 {[%emt 0:30:16]} Kg6 {[%emt 0:31:05]} 42. h4 {[%emt 0:00:14]} Nd5 {[%emt 0:01:59]} 43. Kd3 {[%emt 0:01:53]} Nb4+ {[%emt 0:03:49]} 44. Kc4 {[%emt 0:00:13]} Na6 {[%emt 0:00:41]} 45. Kb3 {[%emt 0:02:43]} b5 {[%emt 0:00:57]} 46. axb5 {[%emt 0:01:09]} cxb5 {[%emt 0:00:10]} 47. Kc3 {[%emt 0:00:12]} c4 {[%emt 0:01:48]} 48. Kb2 {[%emt 0:00:57]} b4 {[%emt 0:00:17] unterminated} *

[Event "DVM U14w 2019"]
[Site "Neumuenster"]
[Date "2019.12.27"]
[Round "1"]
[White "Krasikova, Milana"]
[Black "Evering, Enna"]
[Result "0-1"]
[ECO "C68"]
[WhiteElo "1082"]
[BlackElo "1556"]
[Annotator "NA RC"]
[PlyCount "70"]
[EventDate "2019.12.27"]
[EventType "team-tourn"]
[EventRounds "7"]
[EventCountry "GER"]
[SourceTitle "playchess.com"]
[Source "ChessBase"]
[SourceQuality "1"]
[WhiteTeam "Hamburger SK"]
[BlackTeam "SC Papenburg"]
[TimeControl "40/5400+30:1800+30"]

1. e4 {[%emt 0:00:00]} e5 {[%emt 0:00:00]} 2. Nf3 {[%emt 0:00:00]} Nc6 {[%emt 0:00:00]} 3. Bb5 {[%emt 0:00:00]} a6 {[%emt 0:00:12]} 4. Bxc6 {[%emt 0:01:19]} dxc6 {[%emt 0:01:51]} 5. d3 {[%emt 0:00:57]} Bd6 {[%emt 0:03:47]} 6. c3 {[%emt 0:01:49]} Bg4 {[%emt 0:08:22]} 7. d4 {[%emt 0:01:52]} Bxf3 {[%emt 0:10:36]} 8. Qxf3 {[%emt 0:01:16]} Qf6 {[%emt 0:03:38]} 9. Qxf6 {[%emt 0:02:33]} Nxf6 {[%emt 0:01:53]} 10. Nd2 {[%emt 0:00:29]} O-O-O {[%emt 0:02:47]} 11. O-O {[%emt 0:00:44]} Rhe8 {[%emt 0:02:30]} 12. Re1 {[%emt 0:01:07]} exd4 {[%emt 0:03:01]} 13. cxd4 {[%emt 0:00:29]} Bb4 {[%emt 0:01:48]} 14. e5 {[%emt 0:02:02]} Nd5 {[%emt 0:14:49]} 15. a3 {[%emt 0:01:07]} Bxd2 {[%emt 0:01:27]} 16. Bxd2 {[%emt 0:00:12]} Nb6 {[%emt 0:04:35]} 17. Bc3 {[%emt 0:01:37]} Na4 {[%emt 0:03:07]} 18. Rac1 {[%emt 0:00:50]} Nxc3 {[%emt 0:00:48]} 19. bxc3 {[%emt 0:00:30]} Rd5 {[%emt 0:02:03]} 20. a4 {[%emt 0:01:40]} c5 {[%emt 0:02:16]} 21. Rcd1 {[%emt 0:01:27]} cxd4 {[%emt 0:01:52]} 22. Rxd4 {[%emt 0:02:22]} Rdxe5 {[%emt 0:01:56]} 23. Rxe5 {[%emt 0:00:42]} Rxe5 {[%emt 0:00:05]} 24. f4 {[%emt 0:00:47]} Rc5 {[%emt 0:01:17]} 25. c4 {[%emt 0:01:51]} Ra5 {[%emt 0:00:25]} 26. Re4 {[%emt 0:01:59]} Kd7 {[%emt 0:06:34]} 27. Rd4+ {[%emt 0:01:10]} Ke6 {[%emt 0:01:12]} 28. Re4+ {[%emt 0:00:17]} Kf6 {[%emt 0:01:42]} 29. Re5 {[%emt 0:01:08]} Rxe5 {[%emt 0:00:20]} 30. fxe5+ {[%emt 0:00:11]} Kxe5 {[%emt 0:00:02]} 31. Kf2 {[%emt 0:00:17]} Kd4 {[%emt 0:00:08]} 32. Kf3 {[%emt 0:00:01]} Kxc4 {[%emt 0:00:05]} 33. g4 {[%emt 0:00:07]} Kb4 {[%emt 0:00:06]} 34. h4 {[%emt 0:00:14]} c5 {[%emt 0:00:13]} 35. g5 {[%emt 0:00:08]} c4 {[%emt 0:00:33] normal} 0-1

[Event "DVM U14w 2019"]
[Site "Neumuenster"]
[Date "2019.12.27"]
[Round "1"]
[White "Semenchenko, Simona"]
[Black "Stowicek, Yara Mathilda"]
[Result "1/2-1/2"]
[ECO "C47"]
[WhiteElo "919"]
[BlackElo "1682"]
[Annotator "NA RC"]
[PlyCount "72"]
[EventDate "2019.12.27"]
[EventType "team-tourn"]
[EventRounds "7"]
[EventCountry "GER"]
[SourceTitle "playchess.com"]
[Source "ChessBase"]
[SourceQuality "1"]
[WhiteTeam "SK Tarrasch 1945 München"]
[BlackTeam "USV Halle"]
[TimeControl "40/5400+30:1800+30"]

1. e4 {[%emt 0:00:00]} e5 {[%emt 0:00:00]} 2. Nf3 {[%emt 0:00:00]} Nc6 {[%emt 0:00:00]} 3. Nc3 {[%emt 0:00:07]} Nf6 {[%emt 0:00:30]} 4. Bc4 {[%emt 0:00:33]} Nxe4 {[%emt 0:03:56]} 5. Nxe4 d5 6. Bd3 {[%emt 0:01:03]} dxe4 {[%emt 0:01:18]} 7. Bxe4 {[%emt 0:00:18]} Bd7 {[%emt 0:09:50]} 8. d3 {[%emt 0:00:25]} h6 {[%emt 0:03:26]} 9. Be3 {[%emt 0:00:14]} Bd6 {[%emt 0:02:50]} 10. O-O {[%emt 0:00:19]} Qe7 {[%emt 0:05:53]} 11. c3 {[%emt 0:01:22]} f5 {[%emt 0:08:57]} 12. Bxc6 {[%emt 0:02:56]} Bxc6 {[%emt 0:00:57]} 13. Re1 {[%emt 0:00:13]} O-O {[%emt 0:12:21]} 14. d4 {[%emt 0:00:27]} e4 {[%emt 0:00:47]} 15. Bd2 Qf6 16. Ne5 {[%emt 0:04:01]} Bxe5 {[%emt 0:01:31]} 17. dxe5 {[%emt 0:00:15]} Qxe5 {[%emt 0:00:25]} 18. f4 {[%emt 0:01:12]} Qf6 {[%emt 0:02:36]} 19. Qb3+ {[%emt 0:00:39]} Kh8 {[%emt 0:03:20]} 20. Be3 {[%emt 0:00:33]} Qh4 {[%emt 0:05:18]} 21. g3 {[%emt 0:00:40]} Qg4 {[%emt 0:01:01]} 22. Qe6 {[%emt 0:02:00]} Rae8 {[%emt 0:02:41]} 23. Qc4 {[%emt 0:01:58]} Rd8 {[%emt 0:09:27]} 24. Qc5 {[%emt 0:00:44]} Rf7 {[%emt 0:04:31]} 25. Qxa7 {[%emt 0:00:53]} Qf3 {[%emt 0:04:29]} 26. Rf1 {[%emt 0:00:42]} Qe2 {[%emt 0:02:28]} 27. Rae1 {[%emt 0:00:07]} Qc4 {[%emt 0:00:58]} 28. Qa3 {[%emt 0:01:37]} b6 {[%emt 0:03:05]} 29. Rd1 {[%emt 0:00:17]} Rd3 {[%emt 0:03:29]} 30. b3 {[%emt 0:01:57]} Qxc3 {[%emt 0:01:48]} 31. Rfe1 {[%emt 0:00:36]} Rxd1 {[%emt 0:00:37]} 32. Rxd1 {[%emt 0:01:04]} Qxe3+ {[%emt 0:00:06]} 33. Kf1 Bb5+ 34. Kg2 {[%emt 0:01:29]} Qf3+ {[%emt 0:01:03]} 35. Kh3 {[%emt 0:01:04]} Qxd1 {[%emt 0:00:32]} 36. Kh4 {[%emt 0:00:39]} Qg4# {[%emt 0:00:09] normal} 1/2-1/2

[Event "DVM U14w 2019"]
[Site "Neumuenster"]
[Date "2019.12.27"]
[Round "1"]
[White "Körle, Jolina"]
[Black "Boutayeb, Malak"]
[Result "1-0"]
[ECO "C50"]
[WhiteElo "790"]
[BlackElo "800"]
[Annotator "NA RC"]
[PlyCount "53"]
[EventDate "2019.12.27"]
[EventType "team-tourn"]
[EventRounds "7"]
[EventCountry "GER"]
[SourceTitle "playchess.com"]
[Source "ChessBase"]
[SourceQuality "1"]
[WhiteTeam "TuRa Harksheide Norderstedt"]
[BlackTeam "VSG 1880 Offenbach"]
[TimeControl "40/5400+30:1800+30"]

1. e4 {[%emt 0:00:00]} e5 {[%emt 0:00:00]} 2. Nf3 {[%emt 0:00:30]} Nc6 {[%emt 0:00:30]} 3. Bc4 {[%emt 0:00:30]} Bc5 {[%emt 0:00:30]} 4. d3 {[%emt 0:00:30]} d6 {[%emt 0:00:30]} 5. O-O {[%emt 0:00:10]} Nf6 {[%emt 0:01:05]} 6. Nc3 {[%emt 0:00:10]} O-O {[%emt 0:00:15]} 7. Nd5 {[%emt 0:00:08]} Be6 {[%emt 0:04:17]} 8. Nh4 {[%emt 0:03:27]} Ng4 {[%emt 0:02:47]} 9. Ne3 {[%emt 0:01:21]} Nxe3 {[%emt 0:02:42]} 10. fxe3 {[%emt 0:00:40]} Bxc4 {[%emt 0:02:37]} 11. dxc4 {[%emt 0:00:08]} Qxh4 {[%emt 0:01:45]} 12. Bd2 {[%emt 0:03:18]} Qxe4 {[%emt 0:00:53]} 13. Be1 {[%emt 0:01:34]} Qxc4 {[%emt 0:03:09]} 14. Bf2 {[%emt 0:07:43]} Ne7 {[%emt 0:03:30]} 15. Qh5 {[%emt 0:04:48]} g6 {[%emt 0:04:13]} 16. Qh6 {[%emt 0:01:04]} Nf5 {[%emt 0:00:38]} 17. Qg5 {[%emt 0:01:39]} Nxe3 {[%emt 0:01:35]} 18. Bxe3 {[%emt 0:00:57]} Qxc2 {[%emt 0:03:07]} 19. Qh6 {[%emt 0:01:16]} Qc4 {[%emt 0:01:53]} 20. Rf3 {[%emt 0:00:33]} e4 {[%emt 0:02:27]} 21. Rh3 {[%emt 0:00:30]} Rfe8 {[%emt 0:03:30]} 22. Qxh7+ {[%emt 0:03:33]} Kf8 {[%emt 0:02:47]} 23. Qh4 {[%emt 0:01:02]} Bd4 {[%emt 0:02:40]} 24. Bxd4 {[%emt 0:01:45]} Qxd4+ {[%emt 0:00:03]} 25. Kh1 {[%emt 0:01:09]} Re5 {[%emt 0:00:51]} 26. Qf6 {[%emt 0:00:24]} Qxb2 {[%emt 0:05:46]} 27. Rh8# {normal} 1-0

[Event "DVM U14w 2019"]
[Site "Neumuenster"]
[Date "2019.12.27"]
[Round "2"]
[White "Dietz, Kristin"]
[Black "Yue, Qizhou"]
[Result "0-1"]
[ECO "B47"]
[WhiteElo "1946"]
[BlackElo "1784"]
[Annotator "NA"]
[PlyCount "122"]
[EventDate "2019.12.27"]
[EventType "team-tourn"]
[EventRounds "7"]
[EventCountry "GER"]
[SourceTitle "playchess.com"]
[Source "ChessBase"]
[SourceQuality "1"]
[WhiteTeam "USV Halle"]
[BlackTeam "SV Multatuli Ingelheim"]
[TimeControl "40/5400+30:1800+30"]

1. e4 {[%emt 0:00:00]} c5 {[%emt 0:00:00]} 2. Nf3 {[%emt 0:00:00]} e6 {[%emt 0:00:00]} 3. d4 {[%emt 0:00:00]} cxd4 {[%emt 0:00:00]} 4. Nxd4 {[%emt 0:00:00]} Nc6 {[%emt 0:00:11]} 5. Nc3 {[%emt 0:00:18]} Qc7 {[%emt 0:00:28]} 6. f4 {[%emt 0:00:30]} Bb4 {[%emt 0:10:14]} 7. Ndb5 {[%emt 0:05:37]} Qb8 {[%emt 0:03:44]} 8. e5 {[%emt 0:04:59]} a6 {[%emt 0:05:48]} 9. Nd6+ {[%emt 0:00:45]} Bxd6 {[%emt 0:00:21]} 10. exd6 {[%emt 0:00:06]} Nf6 {[%emt 0:03:39]} 11. a4 {[%emt 0:01:17]} b6 {[%emt 0:02:53]} 12. Be3 {[%emt 0:01:23]} O-O {[%emt 0:01:12]} 13. Qd2 {[%emt 0:09:51]} Re8 {[%emt 0:03:38]} 14. Bc4 {[%emt 0:03:19]} Ng4 {[%emt 0:16:13]} 15. Rd1 {[%emt 0:01:30]} Nxe3 {[%emt 0:05:20]} 16. Qxe3 {[%emt 0:00:05]} Na5 {[%emt 0:05:10]} 17. Bd3 Bb7 {[%emt 0:02:54]} 18. O-O {[%emt 0:02:59]} Bd5 {[%emt 0:03:12]} 19. Qh3 {[%emt 0:04:17]} g6 {[%emt 0:05:05]} 20. Ne4 {[%emt 0:03:13]} Bxe4 {[%emt 0:01:19]} 21. Bxe4 {[%emt 0:00:06]} Ra7 {[%emt 0:01:09]} 22. Rf3 {[%emt 0:01:47]} Nc4 {[%emt 0:01:23]} 23. Qh6 {[%emt 0:10:09]} Nxd6 {[%emt 0:03:26]} 24. Bd3 {[%emt 0:00:33]} f5 {[%emt 0:03:04]} 25. Rh3 {[%emt 0:00:58]} Re7 {[%emt 0:00:23]} 26. g4 {[%emt 0:03:49]} b5 {[%emt 0:02:12]} 27. gxf5 {[%emt 0:04:37]} Nxf5 {[%emt 0:02:53]} 28. Qg5 {[%emt 0:06:31]} Rf7 {[%emt 0:00:38]} 29. axb5 {[%emt 0:00:49]} axb5 {[%emt 0:00:38]} 30. Be4 {[%emt 0:02:36]} Rc7 {[%emt 0:03:08]} 31. Rb3 {[%emt 0:04:08]} Rc4 {[%emt 0:01:16]} 32. Re1 {[%emt 0:02:06]} Nd4 {[%emt 0:02:29]} 33. Rg3 {[%emt 0:04:50]} Qxf4 {[%emt 0:02:08]} 34. Qxf4 {[%emt 0:05:10]} Rxf4 {[%emt 0:00:08]} 35. Bd3 {[%emt 0:01:16]} Rc5 {[%emt 0:02:53]} 36. b4 {[%emt 0:00:45]} Rc8 {[%emt 0:02:28]} 37. Rd1 {[%emt 0:00:18]} Nf5 {[%emt 0:02:21]} 38. Rg5 {[%emt 0:01:18]} Rxb4 {[%emt 0:01:21]} 39. Rf1 {[%emt 0:00:38]} Ne3 {[%emt 0:01:40]} 40. Rf3 {[%emt 0:01:00]} Nf5 {[%emt 0:01:42]} 41. Bxf5 {[%emt 0:30:30]} exf5 {[%emt 0:30:07]} 42. Rfxf5 {[%emt 0:00:08]} Rb1+ {[%emt 0:00:25]} 43. Rf1 Rxf1+ {[%emt 0:00:47]} 44. Kxf1 {[%emt 0:00:07]} Rxc2 {[%emt 0:01:27]} 45. Rxb5 {[%emt 0:00:03]} Rxh2 {[%emt 0:00:25]} 46. Rd5 {[%emt 0:00:04]} Kf7 {[%emt 0:00:00]} 47. Rxd7+ {[%emt 0:00:00]} Ke6 {[%emt 0:00:00]} 48. Ra7 {[%emt 0:00:00]} h5 {[%emt 0:00:00]} 49. Kg1 {[%emt 0:00:00]} Rd2 {[%emt 0:00:00]} 50. Ra5 {[%emt 0:00:00]} Rd5 {[%emt 0:00:00]} 51. Ra2 {[%emt 0:00:00]} g5 {[%emt 0:00:00]} 52. Kg2 {[%emt 0:00:00]} Kf5 {[%emt 0:00:00]} 53. Ra3 {[%emt 0:00:00]} g4 {[%emt 0:00:00]} 54. Kg3 {[%emt 0:00:00]} Kg5 {[%emt 0:00:00]} 55. Ra8 {[%emt 0:00:00]} h4+ {[%emt 0:00:00]} 56. Kg2 {[%emt 0:00:00]} Rd2+ {[%emt 0:00:00]} 57. Kg1 {[%emt 0:00:00]} h3 {[%emt 0:00:00]} 58. Rf8 {[%emt 0:00:00]} Kh4 {[%emt 0:00:00]} 59. Rf1 {[%emt 0:00:00]} g3 {[%emt 0:00:00]} 60. Ra1 {[%emt 0:00:00]} h2+ {[%emt 0:00:00]} 61. Kh1 {[%emt 0:00:00]} Kh3 {[%emt 0:00:00] normal} 0-1

[Event "DVM U14w 2019"]
[Site "Neumuenster"]
[Date "2019.12.27"]
[Round "2"]
[White "Stowicek, Yara Mathilda"]
[Black "Albrecht, Angelique"]
[Result "1-0"]
[ECO "C55"]
[WhiteElo "1682"]
[BlackElo "1219"]
[Annotator "NA"]
[PlyCount "47"]
[EventDate "2019.12.27"]
[EventType "team-tourn"]
[EventRounds "7"]
[EventCountry "GER"]
[SourceTitle "playchess.com"]
[Source "ChessBase"]
[SourceQuality "1"]
[WhiteTeam "USV Halle"]
[BlackTeam "SV Multatuli Ingelheim"]
[TimeControl "40/5400+30:1800+30"]

1. e4 {[%emt 0:00:00]} e5 {[%emt 0:00:00]} 2. Bc4 {[%emt 0:00:00]} Nf6 {[%emt 0:00:07]} 3. Nf3 {[%emt 0:00:32]} Nc6 {[%emt 0:02:20]} 4. d3 {[%emt 0:01:07]} h6 {[%emt 0:00:28]} 5. c3 {[%emt 0:00:32]} Bc5 {[%emt 0:02:58]} 6. Nbd2 {[%emt 0:02:34]} d5 {[%emt 0:03:44]} 7. exd5 {[%emt 0:01:26]} Nxd5 {[%emt 0:00:28]} 8. O-O {[%emt 0:05:57]} Bg4 {[%emt 0:03:21]} 9. Ne4 {[%emt 0:01:50]} Bb6 {[%emt 0:01:09]} 10. Ng3 {[%emt 0:01:22]} O-O {[%emt 0:02:13]} 11. h3 {[%emt 0:01:19]} Be6 {[%emt 0:01:20]} 12. Re1 {[%emt 0:01:24]} Qf6 {[%emt 0:00:30]} 13. Ne4 {[%emt 0:16:32]} Qe7 {[%emt 0:07:22]} 14. Bb3 {[%emt 0:11:23]} f5 {[%emt 0:04:48]} 15. Ng3 {[%emt 0:00:39]} Qf6 {[%emt 0:03:56]} 16. Nh5 {[%emt 0:02:22]} Qe7 {[%emt 0:06:31]} 17. Nxe5 {[%emt 0:04:21]} Qd6 {[%emt 0:17:37]} 18. Nc4 {[%emt 0:05:59]} Qe7 {[%emt 0:02:26]} 19. Nxb6 {[%emt 0:00:17]} Nxb6 {[%emt 0:04:06]} 20. Rxe6 {[%emt 0:00:25]} Qd7 {[%emt 0:05:24]} 21. Re7+ {[%emt 0:01:36]} Kh8 {[%emt 0:00:23]} 22. Rxd7 {[%emt 0:00:05]} Nxd7 {[%emt 0:00:07]} 23. Nf4 {[%emt 0:01:05]} Nf6 {[%emt 0:00:21]} 24. Ng6+ {[%emt 0:00:14] normal} 1-0